fUST/lending_fUST_20250126
["ID","MTS","AMOUNT","RATE_DAILY","PERIOD"]
[350456331,1737891052045,-666.211,0.00016833,2]
[350456332,1737891052054,-151.0,0.00016849,2]
[350456333,1737891052063,-151.0,0.00016849,2]
[350456334,1737891052072,-557.36,0.00016849,2]
[350456335,1737891052081,-500.0,0.00016849,2]
[350456336,1737891052091,-500.0,0.00016849,2]
[350456337,1737891052100,-500.0,0.00016849,2]
[350456338,1737891052108,-568.55,0.00016849,2]
[350456339,1737891052118,-500.0,0.00016849,2]
[350456340,1737891052127,-500.0,0.00016849,2]
[350456341,1737891052136,-500.0,0.00016849,2]
[350456342,1737891052145,-4179.8,0.00016849,2]
[350456343,1737891052154,-500.0,0.00016849,2]
[350456344,1737891052163,-500.0,0.00016849,2]
[350456345,1737891052172,-616.83,0.00016849,2]
[350456346,1737891052181,-500.0,0.00016849,2]
[350456347,1737891052191,-1701.25,0.00016849,2]
[350456348,1737891052200,-4232.21,0.00016849,2]
[350456349,1737891052209,-500.0,0.00016849,2]
[350456350,1737891052218,-5087.71,0.00016849,2]
[350456351,1737891052228,-973.26,0.00016849,2]
[350456352,1737891052237,-500.0,0.00016849,2]
[350456353,1737891052247,-1029.68,0.00016849,2]
[350456354,1737891052256,-500.0,0.00016849,2]
[350456355,1737891052265,-505.81883535,0.00016849,2]
[350456356,1737891052275,-500.0,0.00016849,2]
[350456357,1737891052285,-1112.37,0.00016849,2]
[350456358,1737891052294,-13712.9445834,0.00016849,2]
[350456368,1737891652331,5707.88968301,0.00023922,120]
[350456371,1737891667153,4514.07,0.00023784,120]
[350456372,1737891779634,250.0,0.00015093,2]
[350456373,1737891791568,4292.0,0.00023784,120]
[350456374,1737891802418,276.26663762,0.00014988,2]
[350456375,1737891817634,276.26663762,0.00014988,2]
[350456376,1737891833027,276.26663762,0.00014988,2]
[350456377,1737891848026,276.26663762,0.00014988,2]
[350456378,1737891863936,276.26663762,0.00014988,2]
[350456379,1737891879505,276.26663762,0.00014988,2]
[350456380,1737891887888,276.26663762,0.00014988,2]
[350456381,1737892086028,252.085266,0.00015069,2]
[350456386,1737892192712,181.922979,0.00013973,2]
[350456405,1737892232263,-252.085266,0.00015221,2]
[350456407,1737892232272,-252.085266,0.00015375,2]
[350456409,1737892232281,-300.0,0.00015446,2]
[350456411,1737892232290,-9816.3644325,0.00015447,2]
[350456413,1737892232300,-341.761,0.0001615,2]
[350456415,1737892232310,-500.0,0.00016438,2]
[350456417,1737892232319,-313.59966481,0.00016438,2]
[350456419,1737892232328,-621.47461728,0.00016438,2]
[350456421,1737892232337,-500.0,0.00016438,2]
[350456423,1737892232347,-500.0,0.00016438,2]
[350456425,1737892232356,-500.0,0.00016438,2]
[350456427,1737892232366,-500.0,0.00016438,2]
[350456429,1737892232376,-189.86469295,0.00016438,2]
[350456431,1737892232384,-500.0,0.00016438,2]
[350456433,1737892232394,-500.0,0.00016438,2]
[350456435,1737892232403,-500.0,0.00016438,2]
[350456443,1737892232565,-1503.36,0.00016438,2]
[350456444,1737892232574,-500.0,0.00016438,2]
[350456445,1737892232584,-1400.21506046,0.00016438,2]
[350456446,1737892232595,-2126.62493954,0.00016438,2]
[350456447,1737892232604,-500.0,0.00016438,2]
[350456448,1737892232613,-434.3991779,0.00016438,2]
[350456449,1737892232625,-65.6008221,0.00016438,2]
[350456450,1737892232634,-2207.3354239,0.00016438,2]
[350456451,1737892232646,-412.9675,0.00016438,2]
[350456461,1737892238031,-327.42539494,0.00016274,2]
[350456463,1737892238040,-498.44960506,0.00016438,2]
[350456465,1737892238052,-862.97452756,0.00016438,2]
[350456467,1737892238063,-373.20294348,0.00016438,2]
[350456469,1737892238072,-811.05,0.00016438,2]
[350456471,1737892238081,-500.0,0.00016438,2]
[350456473,1737892238090,-297.07920877,0.00016438,2]
[350456475,1737892238101,-858.07,0.00016438,2]
[350456477,1737892238115,-500.0,0.00016438,2]
[350456479,1737892238124,-500.0,0.00016438,2]
[350456481,1737892238134,-500.0,0.00016438,2]
[350456483,1737892238144,-2479.83694203,0.00016438,2]
[350456485,1737892238156,-127.55305797,0.00016438,2]
[350456487,1737892238165,-391.3561501,0.00016438,2]
[350456502,1737892238271,-108.6438499,0.00016438,2]
[350456504,1737892238280,-586.53264016,0.00016438,2]
[350456506,1737892238291,-670.89738549,0.00016438,2]
[350456510,1737892238319,-332.885003,0.00016438,2]
[350456624,1737892240231,-10606.73497135,0.00016438,2]
[350456626,1737892240240,-564.99511129,0.00016438,2]
[350456628,1737892240249,-1324.56,0.00016438,2]
[350456630,1737892240258,-500.0,0.00016438,2]
[350456632,1737892240267,-500.0,0.00016438,2]
[350456634,1737892240276,-979.45,0.00016438,2]
[350456636,1737892240285,-660.56,0.00016438,2]
[350456638,1737892240294,-500.0,0.00016438,2]
[350456640,1737892240303,-2290.8,0.00016438,2]
[350456642,1737892240312,-500.0,0.00016438,2]
[350456643,1737892240324,-500.0,0.00016438,2]
[350456645,1737892240334,-500.0,0.00016438,2]
[350456647,1737892240343,-500.0,0.00016438,2]
[350456649,1737892240352,-2926.61245905,0.00016438,2]
[350456770,1737892243199,-610.32754095,0.00016438,2]
[350456771,1737892243208,-817.04116576,0.00016438,2]
[350456796,1737892261053,695.36,0.00010959,2]
[350456797,1737892323450,500.1,0.00023784,120]
[350456798,1737892337428,500.1,0.00023784,120]
[350456799,1737892352176,500.1,0.00023784,120]
[350456800,1737892369331,500.2,0.00023784,120]
[350456813,1737892994281,252.085267,0.00014954,2]
[350456814,1737893160277,209.191263,0.00013973,2]
[350456815,1737893192883,252.085267,0.00014954,2]
[350456816,1737893201002,252.085267,0.00014954,2]
[350456817,1737893248636,201.86998,0.00013699,2]
[350456828,1737893397712,252.085267,0.00014954,2]
[350456829,1737893406505,252.085267,0.00014954,2]
[350456869,1737893432421,-252.085267,0.00015105,2]
[350456870,1737893432432,-252.085267,0.00015258,2]
[350456871,1737893432441,-252.085267,0.00015412,2]
[350456872,1737893432450,-300.0,0.00015999,2]
[350456893,1737893432644,-18167.31823405,0.00016,2]
[350456897,1737893432724,-473.99116428,0.00016305,2]
[350456898,1737893432734,-200.0,0.000164,10]
[350456899,1737893432743,-200.0,0.000164,9]
[350456900,1737893432752,-153.0,0.000164,2]
[350456901,1737893432762,-153.0,0.000164,2]
[350456902,1737893432771,-153.0,0.000164,2]
[350456903,1737893432781,-153.0,0.000164,2]
[350456904,1737893432790,-153.0,0.000164,2]
[350456905,1737893432799,-2457.82670925,0.00016437,2]
[350456918,1737893440468,-4690.71608191,0.00016273,2]
[350456919,1737893440478,-4690.71608191,0.00016437,2]
[350456920,1737893440488,-501.14549979,0.00016438,14]
[350456921,1737893440497,-500.0,0.00016438,2]
[350456922,1737893440511,-500.0,0.00016438,2]
[350456923,1737893440520,-500.0,0.00016438,2]
[350456924,1737893440529,-500.0,0.00016438,2]
[350456925,1737893440539,-500.0,0.00016438,2]
[350456926,1737893440548,-500.0,0.00016438,2]
[350456927,1737893440557,-500.0,0.00016438,2]
[350456928,1737893440566,-1042.35,0.00016438,2]
[350456929,1737893440576,-500.0,0.00016438,2]
[350456930,1737893440587,-500.0,0.00016438,2]
[350456931,1737893440596,-500.0,0.00016438,2]
[350456932,1737893440606,-500.0,0.00016438,2]
[350456933,1737893440617,-500.0,0.00016438,2]
[350456934,1737893440626,-550.07,0.00016438,2]
[350456935,1737893440635,-500.0,0.00016438,2]
[350456936,1737893440644,-500.0,0.00016438,2]
[350456937,1737893440653,-500.0,0.00016438,2]
[350456938,1737893440662,-500.0,0.00016438,2]
[350456939,1737893440672,-501.13512899,0.00016438,2]
[350456940,1737893440689,-439.88,0.00016438,2]
[350456941,1737893440698,-500.0,0.00016438,2]
[350456942,1737893440707,-500.0,0.00016438,2]
[350456943,1737893440716,-500.0,0.00016438,2]
[350456944,1737893440725,-499.40218801,0.00016438,2]
[350456945,1737893440735,-428.96085161,0.00016438,2]
[350456946,1737893440744,-1619.9,0.00016438,2]
[350456947,1737893440753,-500.0,0.00016438,2]
[350456948,1737893440762,-500.0,0.00016438,2]
[350456949,1737893440771,-352.9647333,0.00016438,2]
[350456950,1737893440780,-4464.96,0.00016438,2]
[350456951,1737893440790,-500.0,0.00016438,2]
[350456952,1737893440799,-814.77,0.00016438,2]
[350456953,1737893440808,-500.0,0.00016438,2]
[350456954,1737893440818,-500.0,0.00016438,2]
[350456955,1737893440827,-500.0,0.00016438,2]
[350456956,1737893440837,-500.0,0.00016438,2]
[350456957,1737893440847,-863.65,0.00016438,2]
[350456958,1737893440856,-12631.39,0.00016438,2]
[350456959,1737893440867,-500.0,0.00016438,2]
[350456960,1737893440876,-2636.36,0.00016438,2]
[350456961,1737893440886,-500.0,0.00016438,2]
[350456962,1737893440896,-500.0,0.00016438,2]
[350456963,1737893440905,-992.66,0.00016438,2]
[350456964,1737893440915,-500.0,0.00016438,2]
[350456965,1737893440924,-500.0,0.00016438,2]
[350456966,1737893440934,-500.0,0.00016438,7]
[350456967,1737893440943,-500.0,0.00016438,2]
[350456968,1737893440953,-500.0,0.00016438,2]
[350456969,1737893440963,-1328.07,0.00016438,2]
[350456970,1737893440972,-1004.71,0.00016438,2]
[350456971,1737893440981,-500.0,0.00016438,2]
[350456972,1737893440991,-2343.15,0.00016438,2]
[350456973,1737893441000,-3795.29,0.00016438,2]
[350456974,1737893441009,-500.0,0.00016438,2]
[350456975,1737893441018,-258.958631,0.00016438,2]
[350456976,1737893441028,-154.0344268,0.000165,2]
[350456977,1737893441037,-215.3965244,0.000165,2]
[350456978,1737893441046,-430.7249626,0.000165,2]
[350456979,1737893441055,-395.0,0.0001651,2]
[350456980,1737893441065,-500.0,0.00016573,2]
[350456981,1737893441075,-500.0,0.00016573,2]
[350456982,1737893441085,-500.0,0.00016573,2]
[350456983,1737893441095,-500.0,0.00016573,2]
[350456984,1737893441104,-500.0,0.00016573,2]
[350456985,1737893441116,-500.0,0.00016573,2]
[350456986,1737893441125,-500.0,0.00016574,2]
[350456987,1737893441135,-500.0,0.00016574,2]
[350456988,1737893441144,-500.0,0.00016574,2]
[350456989,1737893441153,-162.79946272,0.00016574,2]
[350456990,1737893441163,-500.0,0.00016574,2]
[350456991,1737893441172,-500.0,0.00016574,2]
[350456992,1737893441182,-605.05153936,0.00016574,2]
[350456993,1737893441191,-500.0,0.00016574,2]
[350456994,1737893441201,-500.0,0.00016574,2]
[350456995,1737893441211,-500.0,0.00016574,2]
[350456996,1737893441220,-235.25705843,0.00016574,2]
[350456997,1737893441229,-500.0,0.00016574,2]
[350456998,1737893441239,-500.0,0.00016574,2]
[350456999,1737893441249,-382.20345641,0.00016574,2]
[350457000,1737893441258,-500.0,0.00016574,2]
[350457001,1737893441268,-331.77,0.00016575,2]
[350457002,1737893441277,-500.0,0.00016575,2]
[350457003,1737893441286,-500.0,0.00016575,2]
[350457004,1737893441297,-520.57883216,0.00016575,2]
[350457005,1737893441307,-500.0,0.00016575,2]
[350457006,1737893441317,-500.0,0.00016575,2]
[350457007,1737893441327,-1042.35,0.00016575,2]
[350457008,1737893441337,-500.0,0.00016575,2]
[350457009,1737893441346,-500.0,0.00016575,2]
[350457010,1737893441356,-550.07,0.00016575,2]
[350457011,1737893441367,-500.0,0.00016575,2]
[350457012,1737893441376,-500.0,0.00016575,2]
[350457013,1737893441386,-500.0,0.00016575,2]
[350457014,1737893441396,-500.0,0.00016575,2]
[350457015,1737893441405,-500.0,0.00016575,2]
[350457016,1737893441415,-1619.9,0.00016575,2]
[350457017,1737893441424,-500.0,0.00016575,2]
[350457018,1737893441434,-4464.96,0.00016575,2]
[350457019,1737893441443,-500.0,0.00016575,2]
[350457020,1737893441452,-814.77,0.00016575,2]
[350457021,1737893441461,-500.0,0.00016575,2]
[350457022,1737893441470,-500.0,0.00016575,2]
[350457023,1737893441479,-863.65,0.00016575,2]
[350457024,1737893441489,-12631.39,0.00016575,2]
[350457025,1737893441499,-500.0,0.00016575,2]
[350457026,1737893441512,-2636.36,0.00016575,2]
[350457027,1737893441522,-500.0,0.00016575,2]
[350457028,1737893441531,-500.0,0.00016575,2]
[350457029,1737893441540,-992.66,0.00016575,2]
[350457030,1737893441550,-500.0,0.00016575,2]
[350457031,1737893441559,-500.0,0.00016575,2]
[350457032,1737893441569,-500.0,0.00016575,2]
[350457033,1737893441578,-1328.07,0.00016575,2]
[350457034,1737893441590,-1004.71,0.00016575,2]
[350457035,1737893441600,-500.0,0.00016575,2]
[350457036,1737893441610,-2343.15,0.00016575,2]
[350457037,1737893441620,-3795.29,0.00016575,2]
[350457038,1737893441629,-500.0,0.00016575,2]
[350457039,1737893441639,-153.0,0.000166,2]
[350457040,1737893441649,-154.2803338,0.00016685,2]
[350457041,1737893441658,-215.3965244,0.00016685,2]
[350457042,1737893441667,-215.3965244,0.00016685,2]
[350457043,1737893441678,-154.2803338,0.00016685,2]
[350457044,1737893441688,-170.0,0.0001669,2]
[350457045,1737893441697,-170.0,0.0001669,2]
[350457046,1737893441707,-170.0,0.0001669,2]
[350457047,1737893441716,-170.0,0.0001669,2]
[350457048,1737893441726,-170.0,0.0001669,2]
[350457049,1737893441735,-170.0,0.0001669,2]
[350457050,1737893441744,-170.0,0.0001669,2]
[350457051,1737893441754,-170.0,0.0001669,2]
[350457052,1737893441763,-170.0,0.0001669,2]
[350457053,1737893441772,-170.0,0.0001669,2]
[350457054,1737893441782,-170.0,0.0001669,2]
[350457055,1737893441791,-170.0,0.0001669,2]
[350457056,1737893441801,-170.0,0.0001669,2]
[350457057,1737893441811,-170.0,0.0001669,2]
[350457058,1737893441820,-170.0,0.0001669,2]
[350457059,1737893441829,-170.0,0.0001669,2]
[350457060,1737893441838,-170.0,0.0001669,2]
[350457061,1737893441847,-170.0,0.0001669,2]
[350457062,1737893441857,-500.0,0.00016711,2]
[350457063,1737893441868,-500.0,0.00016711,2]
[350457064,1737893441878,-286.77025362,0.00016711,2]
[350457065,1737893441887,-151.0,0.00016712,2]
[350457066,1737893441897,-178.103558,0.00016712,2]
[350457067,1737893441907,-500.0,0.00016712,2]
[350457068,1737893441917,-284.21300228,0.00016712,2]
[350457069,1737893441927,-151.0,0.00016712,2]
[350457070,1737893441936,-151.0,0.00016712,2]
[350457071,1737893441946,-500.0,0.00016712,2]
[350457072,1737893441955,-151.0,0.00016712,2]
[350457073,1737893441965,-500.0,0.00016712,2]
[350457074,1737893441974,-1042.35,0.00016712,2]
[350457075,1737893441983,-500.0,0.00016712,2]
[350457076,1737893441992,-500.0,0.00016712,2]
[350457077,1737893442002,-550.07,0.00016712,2]
[350457078,1737893442011,-500.0,0.00016712,2]
[350457079,1737893442022,-500.0,0.00016712,2]
[350457080,1737893442033,-411.56,0.00016712,2]
[350457081,1737893442043,-500.0,0.00016712,2]
[350457082,1737893442053,-500.0,0.00016712,2]
[350457083,1737893442062,-1619.9,0.00016712,2]
[350457084,1737893442071,-500.0,0.00016712,2]
[350457085,1737893442081,-4464.96,0.00016712,2]
[350457086,1737893442091,-500.0,0.00016712,2]
[350457087,1737893442100,-814.77,0.00016712,2]
[350457088,1737893442111,-500.0,0.00016712,2]
[350457089,1737893442120,-500.0,0.00016712,2]
[350457090,1737893442131,-863.65,0.00016712,2]
[350457091,1737893442145,-12631.39,0.00016712,2]
[350457092,1737893442154,-500.0,0.00016712,2]
[350457093,1737893442164,-2636.36,0.00016712,2]
[350457094,1737893442173,-500.0,0.00016712,2]
[350457095,1737893442183,-500.0,0.00016712,2]
[350457096,1737893442192,-992.66,0.00016712,2]
[350457097,1737893442201,-500.0,0.00016712,2]
[350457098,1737893442211,-500.0,0.00016712,2]
[350457099,1737893442221,-500.0,0.00016712,2]
[350457100,1737893442230,-1328.07,0.00016712,2]
[350457101,1737893442240,-1004.71,0.00016712,2]
[350457102,1737893442249,-500.0,0.00016712,2]
[350457103,1737893442258,-2343.15,0.00016712,2]
[350457104,1737893442267,-3795.29,0.00016712,2]
[350457105,1737893442276,-500.0,0.00016712,2]
[350457106,1737893442285,-359.0734102,0.00016829,2]
[350457107,1737893442294,-1200.0,0.00016846,2]
[350457108,1737893442304,-500.0,0.00016848,2]
[350457109,1737893442313,-500.0,0.00016848,2]
[350457110,1737893442323,-151.0,0.00016849,2]
[350457111,1737893442332,-151.0,0.00016849,2]
[350457112,1737893442341,-500.0,0.00016849,2]
[350457113,1737893442351,-481.403891,0.00016849,2]
[350457114,1737893442361,-481.403891,0.00016849,2]
[350457115,1737893442371,-151.0,0.00016849,2]
[350457116,1737893442380,-151.0,0.00016849,2]
[350457117,1737893442389,-151.0,0.00016849,2]
[350457118,1737893442399,-151.0,0.00016849,2]
[350457119,1737893442408,-151.0,0.00016849,2]
[350457120,1737893442417,-173.169106,0.00016849,2]
[350457121,1737893442427,-173.169106,0.00016849,2]
[350457122,1737893442436,-500.0,0.00016849,2]
[350457123,1737893442446,-203.94573,0.00016849,2]
[350457124,1737893442456,-365.847462,0.00016849,2]
[350457125,1737893442467,-365.847462,0.00016849,2]
[350457126,1737893442476,-500.0,0.00016849,2]
[350457127,1737893442486,-151.0,0.00016849,2]
[350457128,1737893442496,-151.0,0.00016849,2]
[350457129,1737893442511,-1042.35,0.00016849,2]
[350457130,1737893442521,-152.894291,0.00016849,2]
[350457131,1737893442530,-151.0,0.00016849,2]
[350457132,1737893442540,-500.0,0.00016849,2]
[350457133,1737893442550,-500.0,0.00016849,2]
[350457134,1737893442560,-151.0,0.00016849,2]
[350457135,1737893442569,-550.07,0.00016849,2]
[350457136,1737893442584,-500.0,0.00016849,2]
[350457137,1737893442594,-151.0,0.00016849,2]
[350457138,1737893442603,-500.0,0.00016849,2]
[350457139,1737893442612,-151.0,0.00016849,2]
[350457140,1737893442622,-500.0,0.00016849,2]
[350457141,1737893442630,-151.0,0.00016849,2]
[350457142,1737893442639,-500.0,0.00016849,2]
[350457143,1737893442649,-1619.9,0.00016849,2]
[350457144,1737893442659,-500.0,0.00016849,2]
[350457145,1737893442668,-151.0,0.00016849,2]
[350457146,1737893442677,-4464.96,0.00016849,2]
[350457147,1737893442686,-151.0,0.00016849,2]
[350457148,1737893442696,-500.0,0.00016849,2]
[350457149,1737893442705,-814.77,0.00016849,2]
[350457150,1737893442714,-500.0,0.00016849,2]
[350457151,1737893442724,-500.0,0.00016849,2]
[350457152,1737893442734,-863.65,0.00016849,2]
[350457154,1737893442743,-12631.39,0.00016849,2]
[350457156,1737893442752,-500.0,0.00016849,2]
[350457158,1737893442762,-2636.36,0.00016849,2]
[350457160,1737893442771,-500.0,0.00016849,2]
[350457162,1737893442781,-500.0,0.00016849,2]
[350457164,1737893442791,-992.66,0.00016849,2]
[350457166,1737893442800,-500.0,0.00016849,2]
[350457168,1737893442810,-500.0,0.00016849,2]
[350457170,1737893442819,-500.0,0.00016849,2]
[350457172,1737893442828,-1328.07,0.00016849,2]
[350457174,1737893442838,-1004.71,0.00016849,2]
[350457176,1737893442847,-500.0,0.00016849,2]
[350457178,1737893442856,-206.8585,0.00016849,2]
[350457179,1737893442867,-2343.15,0.00016849,2]
[350457181,1737893442876,-206.8585,0.00016849,2]
[350457183,1737893442886,-3795.29,0.00016849,2]
[350457185,1737893442895,-157.984617,0.00016849,2]
[350457187,1737893442905,-157.984617,0.00016849,2]
[350457189,1737893442915,-500.0,0.00016849,2]
[350457190,1737893442925,-248.94,0.00016899,2]
[350457191,1737893442934,-151.0,0.000169,2]
[350457192,1737893442943,-4622.714506,0.000169,2]
[350457193,1737893442953,-151.0,0.000169,2]
[350457194,1737893442964,-156.0,0.00016952,2]
[350457195,1737893442973,-151.0,0.00016985,2]
[350457196,1737893442983,-151.0,0.00016985,2]
[350457197,1737893442992,-151.0,0.00016985,2]
[350457198,1737893443001,-151.0,0.00016985,2]
[350457200,1737893443010,-151.0,0.00016985,2]
[350457201,1737893443020,-151.0,0.00016986,2]
[350457202,1737893443030,-151.0,0.00016986,2]
[350457203,1737893443039,-151.0,0.00016986,2]
[350457204,1737893443049,-151.0,0.00016986,2]
[350457205,1737893443059,-151.0,0.00016986,2]
[350457206,1737893443068,-151.0,0.00016986,2]
[350457207,1737893443078,-151.0,0.00016986,2]
[350457208,1737893443087,-151.0,0.00016986,2]
[350457209,1737893443096,-500.0,0.00016986,2]
[350457210,1737893443106,-481.403891,0.00016986,2]
[350457213,1737893443235,-481.403891,0.00016986,2]
[350457215,1737893443245,-151.0,0.00016986,2]
[350457217,1737893443255,-173.169106,0.00016986,2]
[350457218,1737893443264,-173.169106,0.00016986,2]
[350457219,1737893443273,-500.0,0.00016986,2]
[350457220,1737893443282,-365.847462,0.00016986,2]
[350457221,1737893443292,-365.847462,0.00016986,2]
[350457223,1737893443301,-500.0,0.00016986,2]
[350457226,1737893443311,-151.0,0.00016986,2]
[350457229,1737893443320,-151.0,0.00016986,2]
[350457233,1737893443334,-1042.35,0.00016986,2]
[350457236,1737893443343,-500.0,0.00016986,2]
[350457239,1737893443352,-500.0,0.00016986,2]
[350457241,1737893443363,-550.07,0.00016986,2]
[350457243,1737893443371,-500.0,0.00016986,2]
[350457245,1737893443381,-151.0,0.00016986,2]
[350457247,1737893443390,-500.0,0.00016986,2]
[350457249,1737893443400,-500.0,0.00016986,2]
[350457251,1737893443409,-151.0,0.00016986,2]
[350457253,1737893443418,-500.0,0.00016986,2]
[350457255,1737893443427,-1619.9,0.00016986,2]
[350457257,1737893443437,-500.0,0.00016986,2]
[350457259,1737893443446,-151.0,0.00016986,2]
[350457261,1737893443455,-4464.96,0.00016986,2]
[350457263,1737893443465,-500.0,0.00016986,2]
[350457265,1737893443474,-814.77,0.00016986,2]
[350457267,1737893443483,-500.0,0.00016986,2]
[350457269,1737893443492,-500.0,0.00016986,2]
[350457271,1737893443505,-863.65,0.00016986,2]
[350457273,1737893443515,-12631.39,0.00016986,2]
[350457275,1737893443525,-500.0,0.00016986,2]
[350457276,1737893443534,-2636.36,0.00016986,2]
[350457277,1737893443543,-500.0,0.00016986,2]
[350457278,1737893443553,-500.0,0.00016986,2]
[350457279,1737893443563,-992.66,0.00016986,2]
[350457280,1737893443572,-500.0,0.00016986,2]
[350457281,1737893443582,-500.0,0.00016986,2]
[350457282,1737893443592,-500.0,0.00016986,2]
[350457283,1737893443603,-1328.07,0.00016986,2]
[350457284,1737893443614,-1004.71,0.00016986,2]
[350457286,1737893443623,-500.0,0.00016986,2]
[350457287,1737893443632,-206.8585,0.00016986,2]
[350457290,1737893443642,-2343.15,0.00016986,2]
[350457291,1737893443651,-206.8585,0.00016986,2]
[350457293,1737893443660,-3795.29,0.00016986,2]
[350457295,1737893443669,-157.984617,0.00016986,2]
[350457297,1737893443680,-157.984617,0.00016986,2]
[350457300,1737893443693,-500.0,0.00016986,2]
[350457302,1737893443702,-515.2211788,0.00016999,2]
[350457304,1737893443712,-13728.09724849,0.00017,2]
[350457305,1737893443721,-10000.0,0.00017,2]
[350457308,1737893443730,-10000.0,0.00017,2]
[350457311,1737893443739,-3267.11535381,0.00017,2]
[350457362,1737893444067,-500.0,0.00016438,2]
[350457365,1737893444077,-500.0,0.00016575,2]
[350457367,1737893444087,-500.0,0.00016712,2]
[350457369,1737893444096,-500.0,0.00016849,2]
[350457371,1737893444106,-500.0,0.00016986,2]
[350457373,1737893444117,-1732.88464619,0.00017,2]
[350457375,1737893444126,-2000.0,0.00017,2]
[350457377,1737893444135,-2000.0,0.00017,2]
[350457379,1737893444144,-151.0,0.00017,2]
[350457381,1737893444153,-151.0,0.00017,2]
[350457383,1737893444163,-151.0,0.00017,2]
[350457385,1737893444172,-151.0,0.00017,2]
[350457387,1737893444182,-234.612516,0.00017,2]
[350457389,1737893444191,-151.0,0.00017,2]
[350457391,1737893444201,-481.403891,0.00017,2]
[350457392,1737893444210,-481.403891,0.00017,2]
[350457394,1737893444219,-151.0,0.00017,2]
[350457396,1737893444229,-173.169106,0.00017,2]
[350457398,1737893444239,-173.169106,0.00017,2]
[350457401,1737893444250,-239.105711,0.00017,2]
[350457403,1737893444261,-365.847462,0.00017,2]
[350457405,1737893444270,-365.847462,0.00017,2]
[350457407,1737893444280,-151.0,0.00017,2]
[350457409,1737893444289,-151.0,0.00017,2]
[350457411,1737893444299,-151.0,0.00017,2]
[350457413,1737893444308,-151.0,0.00017,2]
[350457414,1737893444317,-206.8585,0.00017,2]
[350457416,1737893444327,-206.8585,0.00017,2]
[350457418,1737893444337,-157.984617,0.00017,2]
[350457420,1737893444346,-157.984617,0.00017,2]
[350457422,1737893444357,-10051.66014235,0.00017023,7]
[350457424,1737893444368,-500.0,0.00017068,2]
[350457426,1737893444378,-153.0,0.00017096,2]
[350457428,1737893444387,-153.0,0.00017096,2]
[350457430,1737893444397,-2384.13801896,0.00017107,2]
[350457433,1737893444409,-2238.57648686,0.00017107,2]
[350457435,1737893444419,-465.44955821,0.0001712,2]
[350457437,1737893444429,-151.0,0.00017123,2]
[350457439,1737893444438,-151.0,0.00017123,2]
[350457441,1737893444448,-151.0,0.00017123,2]
[350457443,1737893444458,-151.0,0.00017123,2]
[350457445,1737893444467,-481.403891,0.00017123,2]
[350457447,1737893444476,-481.403891,0.00017123,2]
[350457449,1737893444485,-151.0,0.00017123,2]
[350457450,1737893444495,-173.169106,0.00017123,2]
[350457452,1737893444507,-173.169106,0.00017123,2]
[350457454,1737893444516,-500.0,0.00017123,2]